fUST/lending_fUST_20250930
["ID","MTS","AMOUNT","RATE_DAILY","PERIOD"]
[388489607,1759208028995,-8439.51910744,0.00019567,2]
[388489608,1759208029037,-1042.3,0.00019666,2]
[388489609,1759208029067,-515.59,0.00019666,2]
[388489610,1759208029098,-786.14,0.00019666,2]
[388489611,1759208029129,-2524.49345172,0.00019668,2]
[388489612,1759208029160,-94.96309656,0.00019757,2]
[388489613,1759208029389,-73.03690344,0.00019757,2]
[388489614,1759208043893,5000.0,0.00019081,2]
[388489616,1759208142939,351.06707241,0.00018986,2]
[388489617,1759208232325,5000.0,0.00019081,2]
[388489620,1759208343733,-250.0,0.00019088,2]
[388489621,1759208343757,-243.4095924,0.0001929,2]
[388489622,1759208351542,-691.83680532,0.0001929,2]
[388489623,1759208351571,-500.0,0.000194,2]
[388489624,1759208351602,-284.0,0.000195,2]
[388489625,1759208351639,-480.0,0.00019566,2]
[388489626,1759208351667,-2019.59476136,0.00019566,2]
[388489627,1759208351698,-284.0,0.00019576,2]
[388489628,1759208351731,-284.0,0.00019596,2]
[388489629,1759208351772,-284.0,0.00019603,2]
[388489630,1759208351802,-61.14686664,0.0001962,2]
[388489631,1759208351977,-222.85313336,0.0001962,2]
[388489632,1759208352007,-300.0,0.00019663,2]
[388489633,1759208352035,-500.0,0.00019664,2]
[388489634,1759208352063,-500.0,0.00019664,2]
[388489635,1759208352090,-171.59989496,0.00019664,2]
[388489636,1759208352120,-500.0,0.00019664,2]
[388489637,1759208352151,-500.0,0.00019664,2]
[388489638,1759208352180,-645.90007726,0.00019664,2]
[388489639,1759208352208,-367.69352873,0.00019664,2]
[388489640,1759208352236,-510.87352095,0.00019664,2]
[388489641,1759208352266,-500.0,0.00019664,2]
[388489642,1759208352295,-270.72672487,0.00019664,2]
[388489643,1759208352342,-500.0,0.00019664,2]
[388489644,1759208352373,-213.29595503,0.00019664,2]
[388489645,1759208352414,-494.30013339,0.00019664,2]
[388489646,1759208352445,-1200.0,0.00019664,2]
[388489647,1759208352801,-500.0,0.00019665,2]
[388489648,1759208352836,-5184.81782316,0.00019665,2]
[388489649,1759208352891,-10000.01,0.00019665,2]
[388489650,1759208353084,-10000.01,0.00019665,2]
[388489651,1759208353112,-10000.01,0.00019665,2]
[388489652,1759208353144,-10000.01,0.00019665,2]
[388489653,1759208353179,-4315.14217684,0.00019665,2]
[388489654,1759208353206,-169.72564632,0.00019665,2]
[388489655,1759208353241,-1030.27435368,0.00019665,2]
[388489656,1759208353250,-482.94792894,0.00019665,2]
[388489657,1759208353258,-480.0,0.00019665,2]
[388489658,1759208353267,-188.67612377,0.00019665,2]
[388489659,1759208353276,-500.0,0.00019665,2]
[388489660,1759208353285,-500.0,0.00019665,2]
[388489661,1759208353294,-500.0,0.00019665,2]
[388489662,1759208353303,-570.92863317,0.00019665,2]
[388489663,1759208353312,-500.0,0.00019665,2]
[388489664,1759208353322,-500.0,0.00019665,2]
[388489665,1759208353331,-262.31513728,0.00019665,2]
[388489666,1759208353347,-237.68486272,0.00019665,2]
[388489667,1759208353356,-709.03,0.00019666,2]
[388489668,1759208353365,-3938.85,0.00019666,2]
[388489669,1759208353375,-480.0,0.00019666,2]
[388489670,1759208353384,-480.0,0.00019666,2]
[388489671,1759208353392,-480.0,0.00019666,2]
[388489672,1759208353401,-480.0,0.00019666,2]
[388489673,1759208353410,-200.0,0.00019666,10]
[388489674,1759208353419,-200.0,0.00019666,10]
[388489675,1759208353428,-200.0,0.00019666,10]
[388489676,1759208353437,-200.0,0.00019666,10]
[388489677,1759208353447,-200.0,0.00019666,10]
[388489678,1759208353456,-200.0,0.00019666,10]
[388489679,1759208353465,-200.0,0.00019666,10]
[388489680,1759208353474,-200.0,0.00019666,10]
[388489681,1759208353484,-200.0,0.00019666,10]
[388489682,1759208353493,-200.0,0.00019666,10]
[388489683,1759208353502,-200.0,0.00019666,10]
[388489684,1759208353511,-200.0,0.00019666,10]
[388489685,1759208353520,-794.44513728,0.00019666,2]
[388489686,1759208353534,-4315.14217684,0.00019666,2]
[388489687,1759208353552,-207.45268588,0.00019666,2]
[388489688,1759208353561,-200.0,0.00019666,10]
[388489689,1759208353570,-200.0,0.00019666,10]
[388489690,1759208353579,-200.0,0.00019666,10]
[388489691,1759208353588,-200.0,0.00019666,10]
[388489692,1759208353596,-192.54731412,0.00019666,10]
[388489693,1759208358589,-7.45268588,0.00019666,10]
[388489694,1759208358619,-200.0,0.00019666,10]
[388489695,1759208358648,-200.0,0.00019666,10]
[388489696,1759208358675,-181.593367,0.00019666,10]
[388489697,1759208358704,-480.0,0.00019666,2]
[388489698,1759208358732,-247.56,0.00019666,2]
[388489699,1759208358760,-480.0,0.00019666,2]
[388489700,1759208358876,-6406.79789424,0.00019666,2]
[388489701,1759208362511,-10000.01,0.00019666,2]
[388489702,1759208362635,-10000.01,0.00019666,2]
[388489703,1759208362786,-10000.01,0.00019666,2]
[388489704,1759208362893,-10000.01,0.00019666,2]
[388489705,1759208363022,-10000.01,0.00019666,2]
[388489706,1759208363166,-10000.01,0.00019666,2]
[388489707,1759208363308,-10000.01,0.00019666,2]
[388489708,1759208363437,-10000.01,0.00019666,2]
[388489709,1759208363663,-10000.01,0.00019666,2]
[388489710,1759208363803,-10000.01,0.00019666,2]
[388489711,1759208379922,5000.0,0.00019081,2]
[388489712,1759208419577,168.0,0.00019315,2]
[388489713,1759208429627,168.0,0.00019239,2]
[388489717,1759208443860,-703.7046768,0.00019372,2]
[388489718,1759208445986,-424.73732778,0.00019372,2]
[388489719,1759208447958,-200.0,0.00019372,2]
[388489720,1759208450162,-301.27016967,0.00019372,2]
[388489721,1759208452524,-254.2624915,0.00019372,2]
[388489722,1759208452565,328.652477,0.00018659,2]
[388489723,1759208454675,-300.0,0.00019372,2]
[388489724,1759208457082,-280.69706122,0.00019372,2]
[388489725,1759208460587,-408.17148449,0.00019372,2]
[388489726,1759208461034,-408.17148449,0.00019372,2]
[388489727,1759208465243,-224.97544208,0.00019372,2]
[388489728,1759208469715,1147.7740697,0.00018659,2]
[388489729,1759208531645,300.0,0.000187,2]
[388489730,1759208542726,300.0,0.000187,2]
[388489731,1759208549036,-1250.65511341,0.00019372,2]
[388489732,1759208554736,381.85246153,0.0001904,2]
[388489733,1759208556760,1527.40984613,0.0001904,2]
[388489734,1759208558602,3436.67215378,0.0001904,2]
[388489735,1759208560826,2152.76531174,0.0001904,2]
[388489736,1759208560849,3950.76443338,0.0001904,2]
[388489737,1759208568986,5000.0,0.00019372,2]
[388489738,1759208577043,1049.24556662,0.00019372,2]
[388489739,1759208577066,3950.75443338,0.00019372,2]
[388489740,1759208585778,496.79264209,0.00019372,2]
[388489741,1759208593973,1430.79831422,0.00019372,2]
[388489742,1759208603142,4121.66461031,0.00019372,2]
[388489743,1759208603166,878.33538969,0.00019372,2]
[388489744,1759208619312,4861.56862663,0.00019372,2]
[388489745,1759208627879,1586.41282863,0.00019372,2]
[388489746,1759208643381,2673.69315505,0.00019372,2]
[388489747,1759208643406,2326.30684495,0.00019372,2]
[388489748,1759208665888,5000.0,0.00019372,2]
[388489749,1759208689520,173.345419,0.00018657,2]
[388489750,1759208698279,302.42545213,0.000189,2]
[388489751,1759208698307,302.42545213,0.00019089,2]
[388489752,1759208698355,302.42545212,0.00019278,2]
[388489762,1759209004328,153.2787178,0.00019297,2]
[388489763,1759209024899,1615.67580912,0.00019566,2]
[388489812,1759209032672,-221.02032511,0.00019651,2]
[388489814,1759209032682,-300.0,0.00019651,2]
[388489816,1759209032691,-300.0,0.00019651,2]
[388489817,1759209032700,-69.00239353,0.00019651,2]
[388489989,1759209083349,-300.0,0.0001965,2]
[388489990,1759209083373,-277.79248738,0.00019651,2]
[388489991,1759209085537,-205.76413012,0.00019651,2]
[388489992,1759209087709,-16.4433825,0.00019651,2]
[388489993,1759209087732,-283.5566175,0.00019651,2]
[388489994,1759209089656,-216.4433825,0.00019651,2]
[388489995,1759209089680,-31.9884268,0.00019651,2]
[388489996,1759209091222,-300.0,0.00019651,2]
[388489997,1759209104506,-168.0115732,0.00019651,2]
[388489998,1759209104530,-232.85253907,0.00019651,2]
[388489999,1759209108917,-177.569784,0.00019651,2]
[388490000,1759209112152,-89.57767693,0.00019651,2]
[388490001,1759209112175,-289.85392623,0.00019651,2]
[388490002,1759209114788,-188.0,0.00019651,2]
[388490003,1759209119316,-22.14607377,0.00019651,2]
[388490004,1759209119339,-227.16852329,0.00019651,2]
[388490005,1759209121197,-272.83147671,0.00019651,2]
[388490006,1759209121222,-225.79771741,0.00019651,2]
[388490007,1759209121866,-249.31459706,0.00019651,2]
[388490008,1759209235855,271.0,0.00019301,2]
[388490009,1759209238855,-300.0,0.00019649,2]
[388490010,1759209238884,-307.06957662,0.0001965,2]
[388490011,1759209238914,-314.90406315,0.0001965,2]
[388490012,1759209238944,-500.0,0.0001965,2]
[388490013,1759209238973,-500.0,0.0001965,2]
[388490014,1759209239002,-500.0,0.0001965,2]
[388490015,1759209239035,-500.0,0.0001965,2]
[388490016,1759209239063,-500.0,0.0001965,2]
[388490017,1759209239091,-500.0,0.0001965,2]
[388490018,1759209239124,-500.0,0.0001965,2]
[388490019,1759209239156,-500.0,0.0001965,2]
[388490020,1759209239429,-500.0,0.0001965,2]
[388490021,1759209239458,-500.0,0.0001965,2]
[388490022,1759209239488,-500.0,0.0001965,2]
[388490023,1759209239517,-500.0,0.0001965,2]
[388490024,1759209239545,-500.0,0.0001965,2]
[388490025,1759209239573,-500.0,0.0001965,2]
[388490026,1759209239600,-500.0,0.0001965,2]
[388490027,1759209239628,-500.0,0.0001965,2]
[388490028,1759209239656,-500.0,0.0001965,2]
[388490029,1759209239683,-500.0,0.0001965,2]
[388490030,1759209239747,-444.72912465,0.0001965,2]
[388490031,1759209239776,-500.0,0.0001965,2]
[388490032,1759209239804,-500.0,0.0001965,2]
[388490033,1759209239832,-500.0,0.0001965,2]
[388490034,1759209239863,-500.0,0.0001965,2]
[388490035,1759209239893,-500.0,0.0001965,2]
[388490036,1759209239924,-500.0,0.0001965,2]
[388490037,1759209239951,-500.0,0.0001965,2]
[388490038,1759209239981,-500.0,0.0001965,2]
[388490039,1759209240009,-500.0,0.0001965,2]
[388490040,1759209240125,-500.0,0.0001965,2]
[388490041,1759209240153,-500.0,0.0001965,2]
[388490042,1759209240183,-500.0,0.0001965,2]
[388490043,1759209240212,-500.0,0.0001965,2]
[388490044,1759209240240,-324.92212164,0.0001965,2]
[388490045,1759209240274,-500.0,0.0001965,2]
[388490046,1759209240302,-500.0,0.0001965,2]
[388490047,1759209240331,-500.0,0.0001965,2]
[388490048,1759209240362,-500.0,0.0001965,2]
[388490049,1759209240394,-500.0,0.0001965,2]
[388490050,1759209240723,-500.0,0.0001965,2]
[388490051,1759209240757,-500.0,0.0001965,2]
[388490052,1759209240789,-500.0,0.0001965,2]
[388490053,1759209240819,-500.0,0.0001965,2]
[388490054,1759209240847,-500.0,0.0001965,2]
[388490055,1759209240891,-500.0,0.0001965,2]
[388490056,1759209240923,-553.92607693,0.0001965,2]
[388490057,1759209240954,-553.42446183,0.0001965,2]
[388490058,1759209240985,-500.0,0.0001965,2]
[388490059,1759209241016,-285.30892248,0.0001965,2]
[388490060,1759209241205,-214.69107752,0.0001965,2]
[388490061,1759209241237,-500.0,0.0001965,2]
[388490062,1759209241269,-500.0,0.0001965,2]
[388490063,1759209241302,-500.0,0.0001965,2]
[388490064,1759209241335,-500.0,0.0001965,2]
[388490065,1759209241367,-500.0,0.0001965,2]
[388490066,1759209241397,-500.0,0.0001965,2]
[388490067,1759209241427,-409.95060432,0.0001965,2]
[388490068,1759209241459,-500.0,0.0001965,2]
[388490069,1759209241493,-500.0,0.0001965,2]
[388490070,1759209241524,-250.72663632,0.0001965,2]
[388490071,1759209241681,-249.27336368,0.0001965,2]
[388490072,1759209241711,-500.0,0.0001965,2]
[388490073,1759209241746,-500.0,0.0001965,2]
[388490074,1759209241778,-500.0,0.0001965,2]
[388490075,1759209241810,-500.0,0.0001965,2]
[388490076,1759209241841,-500.0,0.0001965,2]
[388490077,1759209241873,-500.0,0.0001965,2]
[388490078,1759209241904,-500.0,0.0001965,2]
[388490079,1759209241942,-500.0,0.0001965,2]
[388490080,1759209241978,-500.0,0.0001965,2]
[388490081,1759209242009,-1.46327264,0.0001965,2]
[388490082,1759209242190,-498.53672736,0.0001965,2]
[388490083,1759209242218,-500.0,0.0001965,2]
[388490084,1759209242245,-500.0,0.0001965,2]
[388490085,1759209242275,-500.0,0.0001965,2]
[388490086,1759209301318,300.0,0.00019649,2]
[388490087,1759209302108,300.0,0.00019649,2]
[388490088,1759209302232,300.0,0.00019649,2]
[388490089,1759209302302,300.0,0.00019649,2]
[388490090,1759209306994,1200.0,0.00019649,2]
[388490092,1759209372213,1558.86338935,0.00019564,2]
[388490093,1759209399792,480.0,0.00019649,2]
[388490094,1759209401450,160.52545829,0.00019649,2]
[388490095,1759209401480,500.0,0.00019649,2]
[388490096,1759209401511,647.21356907,0.00019649,2]
[388490097,1759209401544,256.33412857,0.00019649,2]
[388490098,1759209401569,305.1574783,0.00019649,2]
[388490099,1759209401599,500.0,0.00019649,2]
[388490100,1759209401635,500.0,0.00019649,2]
[388490101,1759209401671,290.99506043,0.00019649,2]
[388490102,1759209403690,1045.78,0.00019649,2]
[388490103,1759209410851,505.99178633,0.00019649,2]
[388490104,1759209413012,480.0,0.00019649,2]
[388490106,1759209422392,300.0,0.00019649,2]
[388490109,1759209440039,1200.0,0.00019649,2]
[388490110,1759209445995,4872.08567494,0.00019551,2]
[388490111,1759209446019,10000.01,0.00019551,2]
[388490112,1759209446042,10000.01,0.00019551,2]
[388490113,1759209446064,10000.01,0.00019551,2]
[388490114,1759209446089,10000.01,0.00019551,2]
[388490115,1759209446112,10000.01,0.00019551,2]
[388490116,1759209446136,10000.01,0.00019551,2]
[388490117,1759209446160,10000.01,0.00019551,2]
[388490118,1759209446182,10000.01,0.00019551,2]
[388490119,1759209446208,10000.01,0.00019551,2]
[388490120,1759209455278,504.52,0.00025,30]
[388490121,1759209462955,-188.69,0.00019541,3]
[388490122,1759209463471,-4858.28652711,0.00019551,2]
[388490123,1759209463567,-10000.01,0.00019551,2]
[388490124,1759209463685,-10000.01,0.00019551,2]
[388490125,1759209463843,-10000.01,0.00019551,2]
[388490126,1759209463981,-10000.01,0.00019551,2]
[388490127,1759209468655,-5000.0,0.00019355,2]
[388490128,1759209468693,-0.01,0.00019551,2]
[388490129,1759209468805,-10000.01,0.00019551,2]
[388490130,1759209468926,-10000.01,0.00019551,2]
[388490131,1759209469042,-10000.01,0.00019551,2]
[388490132,1759209469148,-10000.01,0.00019551,2]
[388490133,1759209469286,-10000.01,0.00019551,2]
[388490134,1759209472952,-5000.0,0.00019355,2]
[388490135,1759209472992,-0.01,0.00019551,2]
[388490136,1759209473172,-10000.01,0.00019551,2]
[388490137,1759209473327,-566.09,0.00019541,3]
[388490138,1759209473363,-8867.83,0.00019551,2]
[388490139,1759209473462,-10000.01,0.00019551,2]
[388490140,1759209477415,-184.2837217,0.00019549,2]
[388490141,1759209477455,-9631.4425566,0.00019551,2]
[388490142,1759209477526,-10000.01,0.00019551,2]
[388490143,1759209477662,-10000.01,0.00019551,2]
[388490144,1759209477796,-10000.01,0.00019551,2]
[388490145,1759209477935,-10000.01,0.00019551,2]
[388490146,1759209478068,-10000.01,0.00019551,2]
[388490147,1759209483603,-10000.01,0.00019551,2]
[388490148,1759209483734,-10000.01,0.00019551,2]
[388490149,1759209483854,-10000.01,0.00019551,2]
[388490150,1759209484003,-10000.01,0.00019551,2]
[388490151,1759209496931,5000.0,0.00019081,2]
[388490152,1759209519979,-5000.0,0.00019355,2]
[388490153,1759209520222,0.01,0.00019081,2]
[388490154,1759209520245,4999.99,0.00019081,2]
[388490155,1759209535356,5000.0,0.00019355,2]
[388490156,1759209559588,0.02,0.00019355,2]
[388490157,1759209559613,4999.98,0.00019355,2]
[388490158,1759209582081,5000.0,0.00019355,2]
[388490159,1759209590015,0.03,0.00018809,2]
[388490160,1759209590037,776.15236535,0.00018809,2]
[388490161,1759209592479,3101.62473193,0.00018809,2]
[388490162,1759209605905,5000.0,0.00019355,2]
[388490163,1759209628473,1122.23290272,0.00019355,2]
[388490164,1759209628495,3877.76709728,0.00019355,2]
[388490165,1759209651430,5000.0,0.00019355,2]
[388490166,1759209669709,173.345419,0.0001855,2]
[388490167,1759209673880,164.326239,0.0001855,2]
[388490168,1759209674745,784.57124472,0.00019355,2]
[388490169,1759209674768,4215.42875528,0.00019355,2]
[388490170,1759209677689,598.0,0.00019232,2]
[388490171,1759209688431,203.74681374,0.000193,2]
[388490172,1759209693178,598.0,0.00019347,2]
[388490173,1759209697943,598.0,0.00019335,2]
[388490174,1759209698037,3786.83443098,0.00019355,2]
[388490175,1759209698060,1213.16556902,0.00019355,2]
[388490176,1759209714952,227.48652471,0.000193,2]
[388490177,1759209715385,227.48652467,0.00019337,2]
[388490178,1759209720806,5000.0,0.00019355,2]
[388490179,1759209745120,3331.8713816,0.00019355,2]
[388490180,1759209745145,1668.1286184,0.00019355,2]
[388490181,1759209762095,435.41429313,0.00018809,2]
[388490182,1759209766839,5037.99,0.00028767,120]
[388490183,1759209769257,5000.0,0.00019355,2]
[388490184,1759209792252,5037.0,0.00025,30]
[388490185,1759209817126,170.61489351,0.000193,2]
[388490186,1759209817438,170.6148935,0.00019349,2]
[388490187,1759209821822,-598.0,0.00019396,2]
[388490188,1759209821849,-170.6148935,0.00019399,2]
[388490189,1759209821876,-224.26,0.000194,2]
[388490190,1759209821903,-170.6148935,0.00019448,2]
[388490191,1759209821928,-2499.4330029,0.00019547,2]
[388490192,1759209821954,-300.0,0.00019548,2]
[388490193,1759209821982,-874.1644202,0.00019548,2]
[388490194,1759209828333,-325.8355798,0.00019548,2]
[388490195,1759209828364,-300.0,0.00019548,2]
[388490196,1759209828394,-500.0,0.00019549,2]
[388490197,1759209828422,-500.0,0.00019549,2]
[388490198,1759209828452,-500.0,0.00019549,2]
[388490199,1759209828481,-500.0,0.00019549,2]
[388490200,1759209828508,-500.0,0.00019549,2]
[388490201,1759209828538,-500.0,0.00019549,2]
[388490202,1759209828567,-500.0,0.00019549,2]
[388490203,1759209828595,-500.0,0.00019549,2]
[388490204,1759209828624,-248.3388404,0.00019549,2]
[388490205,1759209828930,-251.6611596,0.00019549,2]
[388490206,1759209828960,-500.0,0.00019549,2]
[388490207,1759209828990,-500.0,0.00019549,2]
[388490208,1759209829018,-500.0,0.00019549,2]
[388490209,1759209829047,-500.0,0.00019549,2]
[388490210,1759209829074,-532.44390605,0.00019549,2]
[388490211,1759209829103,-302.70390043,0.00019549,2]
[388490212,1759209829130,-500.0,0.00019549,2]
[388490213,1759209829157,-500.0,0.00019549,2]
[388490214,1759209829185,-500.0,0.00019549,2]
[388490215,1759209829213,-326.39206784,0.00019549,2]
[388490216,1759209829255,-173.60793216,0.00019549,2]
[388490217,1759209829284,-500.0,0.00019549,2]
[388490218,1759209829312,-366.2709163,0.00019549,2]
[388490219,1759209829339,-500.0,0.00019549,2]
[388490220,1759209829368,-500.0,0.00019549,2]
[388490221,1759209829396,-500.0,0.00019549,2]
[388490222,1759209829424,-500.0,0.00019549,2]
[388490223,1759209829451,-482.69520918,0.00019549,2]
[388490224,1759209829478,-500.0,0.00019549,2]
[388490225,1759209829506,-500.0,0.00019549,2]
[388490226,1759209829534,-454.86188472,0.00019549,2]
[388490227,1759209830057,-45.13811528,0.00019549,2]
[388490228,1759209830085,-500.0,0.00019549,2]
[388490229,1759209830114,-500.0,0.00019549,2]
[388490230,1759209830142,-500.0,0.00019549,2]
[388490231,1759209830171,-500.0,0.00019549,2]
[388490232,1759209830199,-500.0,0.00019549,2]
[388490233,1759209830229,-500.0,0.00019549,2]
[388490234,1759209830258,-500.0,0.00019549,2]
[388490235,1759209830290,-500.0,0.00019549,2]
[388490236,1759209830317,-500.0,0.00019549,2]
[388490237,1759209830348,-409.73376944,0.00019549,2]
[388490238,1759209830516,-90.26623056,0.00019549,2]
[388490239,1759209830545,-500.0,0.00019549,2]
[388490240,1759209830575,-500.0,0.00019549,2]
[388490241,1759209830603,-500.0,0.00019549,2]
[388490242,1759209830632,-617.85782677,0.00019549,2]
[388490243,1759209830660,-500.0,0.00019549,2]
[388490244,1759209830689,-500.0,0.00019549,2]
[388490245,1759209830718,-500.0,0.00019549,2]
[388490246,1759209830745,-500.0,0.00019549,2]
[388490247,1759209830773,-500.0,0.00019549,2]
[388490248,1759209830800,-83.76188534,0.00019549,2]
[388490249,1759209830834,-416.23811466,0.00019549,2]
[388490250,1759209830860,-500.0,0.00019549,2]
[388490251,1759209830889,-500.0,0.00019549,2]
[388490252,1759209830916,-391.62774996,0.00019549,2]
[388490253,1759209830944,-500.0,0.00019549,2]
[388490254,1759209830971,-500.0,0.00019549,2]
[388490255,1759209830999,-500.0,0.00019549,2]
[388490256,1759209831027,-500.0,0.00019549,2]
[388490257,1759209831056,-500.0,0.00019549,2]
[388490258,1759209831083,-500.0,0.00019549,2]
[388490259,1759209831344,-500.0,0.00019549,2]
[388490260,1759209831371,-157.36343514,0.00019549,2]
[388490261,1759209831399,-500.0,0.00019549,2]
[388490262,1759209831427,-378.19412772,0.00019549,2]
[388490263,1759209831455,-500.0,0.00019549,2]
[388490264,1759209831483,-500.0,0.00019549,2]
[388490265,1759209831512,-500.0,0.00019549,2]
[388490266,1759209831542,-500.0,0.00019549,2]
[388490267,1759209831570,-506.13391061,0.00019549,2]
[388490268,1759209831599,-500.0,0.00019549,2]
[388490269,1759209831627,-416.62705306,0.00019549,2]
[388490270,1759209831768,-83.37294694,0.00019549,2]
[388490271,1759209831797,-648.65887848,0.00019549,2]
[388490272,1759209831825,-323.69173578,0.00019549,2]
[388490273,1759209831985,-268.89179773,0.00019549,2]
[388490274,1759209832015,-383.08723954,0.00019549,2]
[388490275,1759209832044,-500.0,0.00019549,2]
[388490276,1759209832073,-500.0,0.00019549,2]
[388490277,1759209832101,-500.0,0.00019549,2]
[388490278,1759209832129,-500.0,0.00019549,2]
[388490279,1759209832156,-288.28523988,0.00019549,2]
[388490280,1759209832184,-500.0,0.00019549,2]
[388490281,1759209832213,-500.0,0.00019549,2]
[388490282,1759209837631,-500.0,0.00019549,2]
[388490283,1759209837667,-500.0,0.00019549,2]
[388490284,1759209837700,-300.0,0.00019549,2]
[388490285,1759209837733,-285.0,0.00019549,2]
[388490286,1759209837765,-1200.0,0.00019549,2]
[388490287,1759209837797,-480.0,0.00019549,2]
[388490288,1759209837830,-480.0,0.00019549,2]
[388490289,1759209837862,-480.0,0.00019549,2]
[388490290,1759209837896,-480.0,0.00019549,2]
[388490291,1759209837927,-110.01,0.00019549,2]
[388490292,1759209838106,-369.99,0.00019549,2]
[388490293,1759209838138,-481.56205924,0.00019549,2]
[388490294,1759209838169,-481.70696856,0.00019549,2]
[388490295,1759209858661,3412.80459245,0.00019081,2]
[388490296,1759209866815,5000.0,0.00019081,2]
[388490297,1759209869688,-4910.50231368,0.00019354,2]
[388490298,1759209869807,-191.31,0.00019541,3]
[388490299,1759209869836,-500.0,0.00019549,2]
[388490300,1759209869863,-367.857147,0.00019549,2]
[388490301,1759209869893,-200.51338667,0.00019549,2]
[388490302,1759209869920,-500.0,0.00019549,2]
[388490303,1759209869950,-500.0,0.00019549,2]
[388490304,1759209869979,-500.0,0.00019549,2]
[388490305,1759209870008,-500.0,0.00019549,2]
[388490306,1759209870037,-500.0,0.00019549,2]
[388490307,1759209870067,-500.0,0.00019549,2]
[388490308,1759209870097,-500.0,0.00019549,2]
[388490309,1759209870247,-500.0,0.00019549,2]
[388490310,1759209870276,-500.0,0.00019549,2]
[388490311,1759209870303,-162.40729,0.00019549,2]
[388490312,1759209870340,-500.0,0.00019549,2]
[388490313,1759209870371,-500.0,0.00019549,2]
[388490314,1759209870400,-500.0,0.00019549,2]
[388490315,1759209870430,-500.0,0.00019549,2]
[388490316,1759209870458,-500.0,0.00019549,2]
[388490317,1759209870486,-500.0,0.00019549,2]
[388490318,1759209870516,-500.0,0.00019549,2]
[388490319,1759209870546,-175.19542,0.00019549,2]
[388490320,1759209870677,-324.80458,0.00019549,2]
[388490321,1759209870710,-500.0,0.00019549,2]
[388490322,1759209870740,-500.0,0.00019549,2]
[388490323,1759209870771,-632.21560912,0.00019549,2]
[388490324,1759209870801,-500.0,0.00019549,2]
[388490325,1759209870830,-500.0,0.00019549,2]
[388490326,1759209870859,-500.0,0.00019549,2]
[388490327,1759209870888,-500.0,0.00019549,2]
[388490328,1759209870917,-500.0,0.00019549,2]
[388490329,1759209870946,-291.17820759,0.00019549,2]
[388490330,1759209870977,-3.61320658,0.00019549,2]
[388490331,1759209871300,-496.38679342,0.00019549,2]
[388490332,1759209871331,-500.0,0.00019549,2]
[388490333,1759209871357,-500.0,0.00019549,2]
[388490334,1759209871384,-300.0,0.00019549,2]
[388490335,1759209871409,-481.96048169,0.00019549,2]
[388490336,1759209871435,-480.0,0.0001955,2]
[388490337,1759209871460,-480.0,0.0001955,2]
[388490338,1759209871487,-480.0,0.0001955,2]
[388490339,1759209871515,-480.0,0.0001955,2]
[388490340,1759209871542,-480.0,0.0001955,2]
[388490341,1759209871570,-163.31544978,0.0001955,2]
[388490342,1759209871668,-316.68455022,0.0001955,2]
[388490343,1759209871698,-480.0,0.0001955,2]
[388490344,1759209871725,-500.86,0.0001955,2]
[388490345,1759209871752,-480.0,0.0001955,2]
[388490346,1759209871780,-1002.21,0.0001955,2]